fUST/lending_fUST_20260520
["ID","MTS","AMOUNT","RATE_DAILY","PERIOD"]
[422693095,1779253843000,-500.0,8.493e-05,2]
[422693097,1779253843000,-500.0,8.493e-05,2]
[422693105,1779253843000,-501.08629657,8.493e-05,2]
[422693098,1779253843000,-666.47,8.493e-05,2]
[422693102,1779253843000,-500.0,8.493e-05,2]
[422693074,1779253843000,-606.11,8.493e-05,2]
[422693089,1779253843000,-500.0,8.493e-05,2]
[422693079,1779253843000,-2915.29,8.493e-05,2]
[422693058,1779253843000,-500.0,8.493e-05,2]
[422693070,1779253843000,-500.0,8.493e-05,2]
[422693043,1779253843000,-1400.31,8.493e-05,2]
[422693044,1779253843000,-1845.71510105,8.493e-05,2]
[422693047,1779253843000,-500.0,8.493e-05,2]
[422693048,1779253843000,-500.0,8.493e-05,2]
[422693049,1779253843000,-500.0,8.493e-05,2]
[422693045,1779253843000,-500.0,8.493e-05,2]
[422693055,1779253843000,-500.0,8.493e-05,2]
[422693053,1779253843000,-500.0,8.493e-05,2]
[422693052,1779253843000,-500.0,8.493e-05,2]
[422693051,1779253843000,-500.0,8.493e-05,2]
[422693054,1779253843000,-500.0,8.493e-05,2]
[422693050,1779253843000,-652.84,8.493e-05,2]
[422693056,1779253843000,-500.0,8.493e-05,2]
[422693068,1779253843000,-825.14,8.493e-05,2]
[422693069,1779253843000,-500.0,8.493e-05,2]
[422693057,1779253843000,-6582.72,8.493e-05,2]
[422693059,1779253843000,-3020.76,8.493e-05,2]
[422693060,1779253843000,-500.0,8.493e-05,2]
[422693099,1779253843000,-1765.95,8.493e-05,2]
[422693063,1779253843000,-500.0,8.493e-05,2]
[422693061,1779253843000,-485.28108792,8.493e-05,2]
[422693062,1779253843000,-500.0,8.493e-05,2]
[422693065,1779253843000,-1333.21,8.493e-05,2]
[422693064,1779253843000,-500.0,8.493e-05,2]
[422693067,1779253843000,-500.0,8.493e-05,2]
[422693066,1779253843000,-500.0,8.493e-05,2]
[422693071,1779253843000,-500.0,8.493e-05,2]
[422693072,1779253843000,-500.0,8.493e-05,2]
[422693100,1779253843000,-1756.94,8.493e-05,2]
[422693138,1779253843000,-1240.91,8.493e-05,2]
[422693104,1779253843000,-2121.79,8.493e-05,2]
[422693142,1779253843000,-500.0,8.493e-05,2]
[422693147,1779253843000,-2566.99,8.493e-05,2]
[422693145,1779253843000,-500.0,8.493e-05,2]
[422693134,1779253843000,-500.0,8.493e-05,2]
[422693141,1779253843000,-549.78,8.493e-05,2]
[422693144,1779253843000,-500.0,8.493e-05,2]
[422693140,1779253843000,-500.0,8.493e-05,2]
[422693136,1779253843000,-1998.99,8.493e-05,2]
[422693160,1779253843000,-500.0,8.493e-05,2]
[422693161,1779253843000,-766.36,8.493e-05,2]
[422693149,1779253843000,-500.0,8.493e-05,2]
[422693159,1779253843000,-628.16,8.493e-05,2]
[422693150,1779253843000,-1186.8,8.493e-05,2]
[422693154,1779253843000,-500.0,8.493e-05,2]
[422693158,1779253843000,-500.0,8.493e-05,2]
[422693151,1779253843000,-500.0,8.493e-05,2]
[422693152,1779253843000,-500.0,8.493e-05,2]
[422693155,1779253843000,-500.0,8.493e-05,2]
[422693153,1779253843000,-2668.41,8.493e-05,2]
[422693156,1779253843000,-500.0,8.493e-05,2]
[422693157,1779253843000,-1938.51,8.493e-05,2]
[422693163,1779253843000,-1571.7,8.493e-05,2]
[422693162,1779253843000,-500.0,8.493e-05,2]
[422693164,1779253843000,-500.0,8.493e-05,2]
[422693165,1779253843000,-4886.17,8.493e-05,2]
[422693166,1779253843000,-730.32,8.493e-05,2]
[422693101,1779253843000,-500.0,8.493e-05,2]
[422693146,1779253843000,-500.82362175,8.493e-05,2]
[422693143,1779253843000,-6063.85,8.493e-05,2]
[422693148,1779253843000,-1359.63,8.493e-05,2]
[422693133,1779253843000,-500.0,8.493e-05,2]
[422693132,1779253843000,-30692.84,8.493e-05,2]
[422693103,1779253843000,-1090.37,8.493e-05,2]
[422693106,1779253843000,-500.0,8.493e-05,2]
[422693108,1779253843000,-152.49664356,8.493e-05,2]
[422693110,1779253843000,-500.0,8.493e-05,2]
[422693109,1779253843000,-545.67071165,8.493e-05,2]
[422693111,1779253843000,-500.0,8.493e-05,2]
[422693112,1779253843000,-1011.77,8.493e-05,2]
[422693117,1779253843000,-529.38642098,8.493e-05,2]
[422693118,1779253843000,-474.38223757,8.493e-05,2]
[422693113,1779253843000,-2158.56,8.493e-05,2]
[422693107,1779253843000,-500.0,8.493e-05,2]
[422693116,1779253843000,-1078.06,8.493e-05,2]
[422693114,1779253843000,-2009.7,8.493e-05,2]
[422693115,1779253843000,-5675.97,8.493e-05,2]
[422693120,1779253843000,-500.0,8.493e-05,2]
[422693128,1779253843000,-500.0,8.493e-05,2]
[422693127,1779253843000,-500.0,8.493e-05,2]
[422693126,1779253843000,-500.0,8.493e-05,2]
[422693123,1779253843000,-1564.93,8.493e-05,2]
[422693122,1779253843000,-1573.32,8.493e-05,2]
[422693129,1779253843000,-500.0,8.493e-05,2]
[422693125,1779253843000,-500.0,8.493e-05,2]
[422693124,1779253843000,-4369.51,8.493e-05,2]
[422693121,1779253843000,-781.28,8.493e-05,2]
[422693130,1779253843000,-302.0,8.493e-05,2]
[422693119,1779253843000,-500.0,8.493e-05,2]
[422693131,1779253843000,-500.0,8.493e-05,2]
[422693211,1779253844000,-372.07982968,8.767e-05,2]
[422693208,1779253844000,-500.0,8.767e-05,2]
[422693209,1779253844000,-1092.1,8.767e-05,2]
[422693213,1779253844000,-500.0,8.767e-05,2]
[422693205,1779253844000,-500.0,8.767e-05,2]
[422693214,1779253844000,-719.85,8.767e-05,2]
[422693204,1779253844000,-500.0,8.767e-05,2]
[422693206,1779253844000,-500.0,8.767e-05,2]
[422693203,1779253844000,-583.73658562,8.767e-05,2]
[422693202,1779253844000,-500.0,8.767e-05,2]
[422693201,1779253844000,-500.0,8.767e-05,2]
[422693196,1779253844000,-500.0,8.767e-05,2]
[422693212,1779253844000,-500.0,8.767e-05,2]
[422693207,1779253844000,-500.0,8.767e-05,2]
[422693228,1779253844000,-500.0,8.767e-05,2]
[422693216,1779253844000,-1143.38,8.767e-05,2]
[422693217,1779253844000,-500.0,8.767e-05,2]
[422693218,1779253844000,-500.0,8.767e-05,2]
[422693225,1779253844000,-500.0,8.767e-05,2]
[422693215,1779253844000,-500.0,8.767e-05,2]
[422693226,1779253844000,-500.0,8.767e-05,2]
[422693220,1779253844000,-2726.82,8.767e-05,2]
[422693219,1779253844000,-500.0,8.767e-05,2]
[422693222,1779253844000,-500.0,8.767e-05,2]
[422693227,1779253844000,-954.32,8.767e-05,2]
[422693224,1779253844000,-535.7,8.767e-05,2]
[422693223,1779253844000,-554.37,8.767e-05,2]
[422693221,1779253844000,-525.33,8.767e-05,2]
[422693195,1779253844000,-501.46096434,8.767e-05,2]
[422693210,1779253844000,-500.0,8.767e-05,2]
[422693197,1779253844000,-500.0,8.767e-05,2]
[422693174,1779253844000,-4707.77,8.493e-05,2]
[422693193,1779253844000,-500.0,8.767e-05,2]
[422693173,1779253844000,-1709.26,8.493e-05,2]
[422693230,1779253844000,-500.0,8.767e-05,2]
[422693171,1779253844000,-1311.79,8.493e-05,2]
[422693170,1779253844000,-500.0,8.493e-05,2]
[422693167,1779253844000,-521.46,8.493e-05,2]
[422693169,1779253844000,-937.65,8.493e-05,2]
[422693168,1779253844000,-500.0,8.493e-05,2]
[422693172,1779253844000,-500.0,8.493e-05,2]
[422693175,1779253844000,-155.48992387,8.493e-05,2]
[422693178,1779253844000,-500.0,8.493e-05,2]
[422693177,1779253844000,-819.34,8.493e-05,2]
[422693176,1779253844000,-2023.45,8.493e-05,2]
[422693183,1779253844000,-500.0,8.767e-05,2]
[422693179,1779253844000,-500.0,8.548e-05,2]
[422693184,1779253844000,-591.4956,8.767e-05,2]
[422693182,1779253844000,-3116.2369,8.767e-05,2]
[422693181,1779253844000,-364.7700049,8.7e-05,2]
[422693186,1779253844000,-500.0,8.767e-05,2]
[422693180,1779253844000,-500.0,8.552e-05,2]
[422693185,1779253844000,-500.0,8.767e-05,2]
[422693198,1779253844000,-892.28,8.767e-05,2]
[422693192,1779253844000,-571.58,8.767e-05,2]
[422693190,1779253844000,-500.0,8.767e-05,2]
[422693200,1779253844000,-500.0,8.767e-05,2]
[422693191,1779253844000,-528.4075013,8.767e-05,2]
[422693188,1779253844000,-500.0,8.767e-05,2]
[422693187,1779253844000,-651.51,8.767e-05,2]
[422693199,1779253844000,-500.0,8.767e-05,2]
[422693194,1779253844000,-500.0,8.767e-05,2]
[422693189,1779253844000,-500.0,8.767e-05,2]
[422693239,1779253844000,-500.0,8.767e-05,2]
[422693229,1779253844000,-956.18,8.767e-05,2]
[422693232,1779253844000,-515.14,8.767e-05,2]
[422693270,1779253844000,-1653.39,8.767e-05,2]
[422693279,1779253844000,-500.0,8.767e-05,2]
[422693278,1779253844000,-500.0,8.767e-05,2]
[422693269,1779253844000,-2724.9,8.767e-05,2]
[422693280,1779253844000,-500.0,8.767e-05,2]
[422693267,1779253844000,-500.0,8.767e-05,2]
[422693273,1779253844000,-500.0,8.767e-05,2]
[422693272,1779253844000,-500.0,8.767e-05,2]
[422693271,1779253844000,-500.0,8.767e-05,2]
[422693275,1779253844000,-500.0,8.767e-05,2]
[422693276,1779253844000,-500.0,8.767e-05,2]
[422693274,1779253844000,-500.0,8.767e-05,2]
[422693277,1779253844000,-500.0,8.767e-05,2]
[422693281,1779253844000,-500.0,8.767e-05,2]
[422693268,1779253844000,-515.99,8.767e-05,2]
[422693284,1779253844000,-500.0,8.767e-05,2]
[422693283,1779253844000,-500.0,8.767e-05,2]
[422693282,1779253844000,-500.0,8.767e-05,2]
[422693289,1779253844000,-500.0,8.767e-05,2]
[422693287,1779253844000,-500.0,8.767e-05,2]
[422693292,1779253844000,-734.29,8.767e-05,2]
[422693290,1779253844000,-500.0,8.767e-05,2]
[422693288,1779253844000,-866.91,8.767e-05,2]
[422693291,1779253844000,-1353.0,8.767e-05,2]
[422693293,1779253844000,-500.0,8.767e-05,2]
[422693286,1779253844000,-500.0,8.767e-05,2]
[422693295,1779253844000,-325.05992202,8.767e-05,2]
[422693297,1779253844000,-500.0,8.767e-05,2]
[422693240,1779253844000,-500.0,8.767e-05,2]
[422693294,1779253844000,-500.0,8.767e-05,2]
[422693285,1779253844000,-500.0,8.767e-05,2]
[422693262,1779253844000,-500.0,8.767e-05,2]
[422693296,1779253844000,-1400.31,8.767e-05,2]
[422693260,1779253844000,-500.0,8.767e-05,2]
[422693259,1779253844000,-500.0,8.767e-05,2]
[422693233,1779253844000,-1490.61,8.767e-05,2]
[422693235,1779253844000,-519.7,8.767e-05,2]
[422693237,1779253844000,-500.0,8.767e-05,2]
[422693236,1779253844000,-500.0,8.767e-05,2]
[422693234,1779253844000,-500.0,8.767e-05,2]
[422693238,1779253844000,-500.0,8.767e-05,2]
[422693242,1779253844000,-500.0,8.767e-05,2]
[422693253,1779253844000,-500.0,8.767e-05,2]
[422693244,1779253844000,-667.03,8.767e-05,2]
[422693252,1779253844000,-471.63026464,8.767e-05,2]
[422693249,1779253844000,-500.0,8.767e-05,2]
[422693241,1779253844000,-568.48,8.767e-05,2]
[422693245,1779253844000,-2890.01,8.767e-05,2]
[422693247,1779253844000,-566.72247492,8.767e-05,2]
[422693231,1779253844000,-500.0,8.767e-05,2]
[422693246,1779253844000,-500.0,8.767e-05,2]
[422693243,1779253844000,-864.46,8.767e-05,2]
[422693264,1779253844000,-500.0,8.767e-05,2]
[422693263,1779253844000,-541.24,8.767e-05,2]
[422693261,1779253844000,-1339.23,8.767e-05,2]
[422693258,1779253844000,-500.0,8.767e-05,2]
[422693266,1779253844000,-859.28,8.767e-05,2]
[422693257,1779253844000,-609.97,8.767e-05,2]
[422693265,1779253844000,-500.0,8.767e-05,2]
[422693255,1779253844000,-1114.89,8.767e-05,2]
[422693254,1779253844000,-769.64,8.767e-05,2]
[422693250,1779253844000,-500.0,8.767e-05,2]
[422693248,1779253844000,-766.99,8.767e-05,2]
[422693251,1779253844000,-500.0,8.767e-05,2]
[422693256,1779253844000,-1522.62,8.767e-05,2]
[422693339,1779253845000,-500.0,8.767e-05,2]
[422693334,1779253845000,-500.0,8.767e-05,2]
[422693343,1779253845000,-500.0,8.767e-05,2]
[422693340,1779253845000,-500.0,8.767e-05,2]
[422693341,1779253845000,-1924.53,8.767e-05,2]
[422693329,1779253845000,-606.4,8.767e-05,2]
[422693338,1779253845000,-500.0,8.767e-05,2]
[422693337,1779253845000,-500.0,8.767e-05,2]
[422693335,1779253845000,-500.0,8.767e-05,2]
[422693336,1779253845000,-463.30016267,8.767e-05,2]
[422693333,1779253845000,-2431.41,8.767e-05,2]
[422693342,1779253845000,-500.0,8.767e-05,2]
[422693346,1779253845000,-1765.95,8.767e-05,2]
[422693349,1779253845000,-500.0,8.767e-05,2]
[422693345,1779253845000,-666.47,8.767e-05,2]
[422693358,1779253845000,-5675.97,8.767e-05,2]
[422693348,1779253845000,-500.0,8.767e-05,2]
[422693347,1779253845000,-1756.94,8.767e-05,2]
[422693352,1779253845000,-500.0,8.767e-05,2]
[422693359,1779253845000,-1078.06,8.767e-05,2]
[422693350,1779253845000,-1090.37,8.767e-05,2]
[422693353,1779253845000,-500.0,8.767e-05,2]
[422693355,1779253845000,-1011.77,8.767e-05,2]
[422693354,1779253845000,-500.0,8.767e-05,2]
[422693351,1779253845000,-2121.79,8.767e-05,2]
[422693356,1779253845000,-2158.56,8.767e-05,2]
[422693357,1779253845000,-2009.7,8.767e-05,2]
[422693330,1779253845000,-2145.16,8.767e-05,2]
[422693344,1779253845000,-500.0,8.767e-05,2]
[422693327,1779253845000,-2915.29,8.767e-05,2]
[422693316,1779253845000,-500.0,8.767e-05,2]
[422693322,1779253845000,-500.0,8.767e-05,2]
[422693305,1779253845000,-500.0,8.767e-05,2]
[422693306,1779253845000,-359.09638739,8.767e-05,2]
[422693298,1779253845000,-500.0,8.767e-05,2]
[422693299,1779253845000,-500.0,8.767e-05,2]
[422693301,1779253845000,-652.84,8.767e-05,2]
[422693300,1779253845000,-500.0,8.767e-05,2]
[422693303,1779253845000,-500.0,8.767e-05,2]
[422693304,1779253845000,-500.0,8.767e-05,2]
[422693302,1779253845000,-500.0,8.767e-05,2]
[422693308,1779253845000,-6582.72,8.767e-05,2]
[422693309,1779253845000,-500.0,8.767e-05,2]
[422693319,1779253845000,-500.0,8.767e-05,2]
[422693318,1779253845000,-825.14,8.767e-05,2]
[422693311,1779253845000,-500.0,8.767e-05,2]
[422693310,1779253845000,-3020.76,8.767e-05,2]
[422693307,1779253845000,-500.0,8.767e-05,2]
[422693317,1779253845000,-500.0,8.767e-05,2]
[422693315,1779253845000,-1333.21,8.767e-05,2]
[422693361,1779253845000,-781.28,8.767e-05,2]
[422693313,1779253845000,-500.0,8.767e-05,2]
[422693314,1779253845000,-500.0,8.767e-05,2]
[422693321,1779253845000,-500.0,8.767e-05,2]
[422693324,1779253845000,-606.11,8.767e-05,2]
[422693320,1779253845000,-500.0,8.767e-05,2]
[422693325,1779253845000,-500.0,8.767e-05,2]
[422693328,1779253845000,-2021.35,8.767e-05,2]
[422693331,1779253845000,-500.0,8.767e-05,2]
[422693326,1779253845000,-1518.43,8.767e-05,2]
[422693332,1779253845000,-2888.2,8.767e-05,2]
[422693323,1779253845000,-537.84,8.767e-05,2]
[422693362,1779253845000,-1573.32,8.767e-05,2]
[422693312,1779253845000,-500.0,8.767e-05,2]
[422693371,1779253845000,-30692.84,8.767e-05,2]
[422693390,1779253845000,-500.0,8.767e-05,2]
[422693400,1779253845000,-500.0,8.767e-05,2]
[422693410,1779253845000,-4707.77,8.767e-05,2]
[422693411,1779253845000,-2023.45,8.767e-05,2]
[422693399,1779253845000,-1571.7,8.767e-05,2]
[422693401,1779253845000,-4886.17,8.767e-05,2]
[422693402,1779253845000,-730.32,8.767e-05,2]
[422693403,1779253845000,-521.46,8.767e-05,2]
[422693404,1779253845000,-500.0,8.767e-05,2]
[422693405,1779253845000,-937.65,8.767e-05,2]
[422693407,1779253845000,-1311.79,8.767e-05,2]
[422693409,1779253845000,-1709.26,8.767e-05,2]
[422693408,1779253845000,-500.0,8.767e-05,2]
[422693406,1779253845000,-500.0,8.767e-05,2]
[422693412,1779253845000,-819.34,8.767e-05,2]
[422693424,1779253845000,-500.0,9.041e-05,2]
[422693414,1779253845000,-500.0,8.826e-05,2]
[422693418,1779253845000,-325.9506487,8.993e-05,2]
[422693415,1779253845000,-172.66369166,8.897e-05,2]
[422693417,1779253845000,-151.0,8.993e-05,2]
[422693423,1779253845000,-500.0,9.041e-05,2]
[422693413,1779253845000,-500.0,8.767e-05,2]
[422693419,1779253845000,-720.0,8.996e-05,2]
[422693420,1779253845000,-3116.2369,9.041e-05,2]
[422693416,1779253845000,-296.76413791,8.897e-05,2]
[422693422,1779253845000,-591.4956,9.041e-05,2]
[422693426,1779253845000,-500.0,9.041e-05,2]
[422693425,1779253845000,-651.51,9.041e-05,2]
[422693363,1779253845000,-1564.93,8.767e-05,2]
[422693394,1779253845000,-538.098286,8.767e-05,2]
[422693397,1779253845000,-766.36,8.767e-05,2]
[422693421,1779253845000,-500.0,9.041e-05,2]
[422693395,1779253845000,-628.16,8.767e-05,2]
[422693388,1779253845000,-500.0,8.767e-05,2]
[422693365,1779253845000,-4369.51,8.767e-05,2]
[422693366,1779253845000,-500.0,8.767e-05,2]
[422693369,1779253845000,-500.0,8.767e-05,2]
[422693370,1779253845000,-500.0,8.767e-05,2]
[422693368,1779253845000,-500.0,8.767e-05,2]
[422693367,1779253845000,-500.0,8.767e-05,2]
[422693384,1779253845000,-1359.63,8.767e-05,2]
[422693373,1779253845000,-500.0,8.767e-05,2]
[422693383,1779253845000,-2566.99,8.767e-05,2]
[422693378,1779253845000,-549.78,8.767e-05,2]
[422693375,1779253845000,-324.44647565,8.767e-05,2]
[422693376,1779253845000,-1240.91,8.767e-05,2]
[422693381,1779253845000,-500.0,8.767e-05,2]
[422693364,1779253845000,-543.90967193,8.767e-05,2]
[422693379,1779253845000,-500.0,8.767e-05,2]
[422693391,1779253845000,-500.0,8.767e-05,2]
[422693372,1779253845000,-500.0,8.767e-05,2]
[422693393,1779253845000,-1938.51,8.767e-05,2]
[422693389,1779253845000,-2668.41,8.767e-05,2]
[422693398,1779253845000,-500.0,8.767e-05,2]
[422693396,1779253845000,-501.61302145,8.767e-05,2]
[422693392,1779253845000,-500.0,8.767e-05,2]
[422693385,1779253845000,-500.0,8.767e-05,2]
[422693386,1779253845000,-501.35206442,8.767e-05,2]
[422693380,1779253845000,-6063.85,8.767e-05,2]
[422693374,1779253845000,-1998.99,8.767e-05,2]
[422693377,1779253845000,-500.0,8.767e-05,2]
[422693382,1779253845000,-500.0,8.767e-05,2]
[422693387,1779253845000,-1186.8,8.767e-05,2]
[422693468,1779253846000,-519.7,9.041e-05,2]
[422693470,1779253846000,-500.0,9.041e-05,2]
[422693467,1779253846000,-500.0,9.041e-05,2]
[422693465,1779253846000,-515.14,9.041e-05,2]
[422693458,1779253846000,-500.0,9.041e-05,2]
[422693464,1779253846000,-500.0,9.041e-05,2]
[422693455,1779253846000,-525.33,9.041e-05,2]
[422693456,1779253846000,-554.37,9.041e-05,2]
[422693469,1779253846000,-500.0,9.041e-05,2]
[422693454,1779253846000,-2726.82,9.041e-05,2]
[422693459,1779253846000,-500.0,9.041e-05,2]
[422693461,1779253846000,-500.0,9.041e-05,2]
[422693466,1779253846000,-1490.61,9.041e-05,2]
[422693476,1779253846000,-500.0,9.041e-05,2]
[422693474,1779253846000,-500.0,9.041e-05,2]
[422693472,1779253846000,-500.0,9.041e-05,2]
[422693475,1779253846000,-568.48,9.041e-05,2]
[422693473,1779253846000,-500.0,9.041e-05,2]
[422693477,1779253846000,-864.46,9.041e-05,2]
[422693479,1779253846000,-2890.01,9.041e-05,2]
[422693491,1779253846000,-500.0,9.041e-05,2]
[422693481,1779253846000,-766.99,9.041e-05,2]
[422693492,1779253846000,-500.0,9.041e-05,2]
[422693493,1779253846000,-1339.23,9.041e-05,2]
[422693457,1779253846000,-535.7,9.041e-05,2]
[422693484,1779253846000,-500.0,9.041e-05,2]
[422693478,1779253846000,-667.03,9.041e-05,2]
[422693463,1779253846000,-500.0,9.041e-05,2]
[422693442,1779253846000,-500.0,9.041e-05,2]
[422693453,1779253846000,-500.0,9.041e-05,2]
[422693482,1779253846000,-500.0,9.041e-05,2]
[422693437,1779253846000,-500.0,9.041e-05,2]
[422693429,1779253846000,-571.58,9.041e-05,2]
[422693431,1779253846000,-500.0,9.041e-05,2]
[422693438,1779253846000,-500.0,9.041e-05,2]
[422693427,1779253846000,-500.0,9.041e-05,2]
[422693430,1779253846000,-500.0,9.041e-05,2]
[422693436,1779253846000,-500.0,9.041e-05,2]
[422693428,1779253846000,-500.0,9.041e-05,2]
[422693432,1779253846000,-500.0,9.041e-05,2]
[422693433,1779253846000,-500.0,9.041e-05,2]
[422693434,1779253846000,-892.28,9.041e-05,2]
[422693462,1779253846000,-956.18,9.041e-05,2]
[422693439,1779253846000,-500.0,9.041e-05,2]
[422693443,1779253846000,-500.0,9.041e-05,2]
[422693444,1779253846000,-1092.1,9.041e-05,2]
[422693445,1779253846000,-500.0,9.041e-05,2]
[422693447,1779253846000,-500.0,9.041e-05,2]
[422693449,1779253846000,-500.0,9.041e-05,2]
[422693448,1779253846000,-719.85,9.041e-05,2]
[422693450,1779253846000,-1143.38,9.041e-05,2]
[422693440,1779253846000,-500.0,9.041e-05,2]
[422693446,1779253846000,-500.0,9.041e-05,2]
[422693451,1779253846000,-500.0,9.041e-05,2]
[422693452,1779253846000,-500.0,9.041e-05,2]
[422693460,1779253846000,-954.32,9.041e-05,2]
[422693441,1779253846000,-500.0,9.041e-05,2]
[422693483,1779253846000,-500.0,9.041e-05,2]
[422693435,1779253846000,-500.0,9.041e-05,2]
[422693488,1779253846000,-1522.62,9.041e-05,2]
[422693520,1779253846000,-866.91,9.041e-05,2]
[422693524,1779253846000,-734.29,9.041e-05,2]
[422693523,1779253846000,-1353.0,9.041e-05,2]
[422693522,1779253846000,-500.0,9.041e-05,2]
[422693528,1779253846000,-500.0,9.041e-05,2]
[422693532,1779253846000,-652.84,9.041e-05,2]
[422693530,1779253846000,-500.0,9.041e-05,2]
[422693526,1779253846000,-500.0,9.041e-05,2]
[422693529,1779253846000,-500.0,9.041e-05,2]
[422693521,1779253846000,-500.0,9.041e-05,2]
[422693531,1779253846000,-500.0,9.041e-05,2]
[422693525,1779253846000,-500.0,9.041e-05,2]
[422693527,1779253846000,-1400.31,9.041e-05,2]
[422693534,1779253846000,-500.0,9.041e-05,2]
[422693533,1779253846000,-582.9330364,9.041e-05,2]
[422693535,1779253846000,-500.0,9.041e-05,2]
[422693536,1779253846000,-500.0,9.041e-05,2]
[422693538,1779253846000,-6582.72,9.041e-05,2]
[422693537,1779253846000,-500.0,9.041e-05,2]
[422693539,1779253846000,-500.0,9.041e-05,2]
[422693541,1779253846000,-500.0,9.041e-05,2]
[422693540,1779253846000,-3020.76,9.041e-05,2]
[422693543,1779253846000,-500.0,9.041e-05,2]
[422693545,1779253846000,-1333.21,9.041e-05,2]
[422693544,1779253846000,-500.0,9.041e-05,2]
[422693546,1779253846000,-500.0,9.041e-05,2]
[422693480,1779253846000,-500.0,9.041e-05,2]
[422693512,1779253846000,-500.0,9.041e-05,2]
[422693516,1779253846000,-369.21410934,9.041e-05,2]
[422693542,1779253846000,-500.0,9.041e-05,2]
[422693515,1779253846000,-500.0,9.041e-05,2]
[422693511,1779253846000,-500.0,9.041e-05,2]
[422693490,1779253846000,-500.0,9.041e-05,2]
[422693489,1779253846000,-609.97,9.041e-05,2]
[422693485,1779253846000,-500.0,9.041e-05,2]
[422693494,1779253846000,-500.0,9.041e-05,2]
[422693496,1779253846000,-500.0,9.041e-05,2]
[422693487,1779253846000,-1114.89,9.041e-05,2]
[422693497,1779253846000,-500.0,9.041e-05,2]
[422693498,1779253846000,-859.28,9.041e-05,2]
[422693499,1779253846000,-500.0,9.041e-05,2]
[422693501,1779253846000,-2724.9,9.041e-05,2]
[422693505,1779253846000,-500.0,9.041e-05,2]
[422693502,1779253846000,-1653.39,9.041e-05,2]
[422693486,1779253846000,-769.64,9.041e-05,2]
[422693503,1779253846000,-500.0,9.041e-05,2]
[422693495,1779253846000,-541.24,9.041e-05,2]
[422693513,1779253846000,-500.0,9.041e-05,2]
[422693510,1779253846000,-196.37439387,9.041e-05,2]
[422693506,1779253846000,-500.0,9.041e-05,2]
[422693508,1779253846000,-500.0,9.041e-05,2]
[422693509,1779253846000,-500.0,9.041e-05,2]
[422693518,1779253846000,-500.0,9.041e-05,2]
[422693507,1779253846000,-500.0,9.041e-05,2]
[422693517,1779253846000,-501.89969157,9.041e-05,2]
[422693504,1779253846000,-500.0,9.041e-05,2]
[422693500,1779253846000,-515.99,9.041e-05,2]
[422693519,1779253846000,-500.0,9.041e-05,2]
[422693514,1779253846000,-500.0,9.041e-05,2]
[422693576,1779253847000,-1756.94,9.041e-05,2]
[422693581,1779253847000,-500.0,9.041e-05,2]
[422693582,1779253847000,-500.0,9.041e-05,2]
[422693571,1779253847000,-500.0,9.041e-05,2]
[422693574,1779253847000,-666.47,9.041e-05,2]
[422693575,1779253847000,-1765.95,9.041e-05,2]
[422693573,1779253847000,-500.0,9.041e-05,2]
[422693577,1779253847000,-500.0,9.041e-05,2]
[422693578,1779253847000,-500.0,9.041e-05,2]
[422693585,1779253847000,-2158.56,9.041e-05,2]
[422693579,1779253847000,-1090.37,9.041e-05,2]
[422693586,1779253847000,-2009.7,9.041e-05,2]
[422693584,1779253847000,-1011.77,9.041e-05,2]
[422693583,1779253847000,-500.0,9.041e-05,2]
[422693587,1779253847000,-5675.97,9.041e-05,2]
[422693589,1779253847000,-478.53057867,9.041e-05,2]
[422693590,1779253847000,-781.28,9.041e-05,2]
[422693592,1779253847000,-1564.93,9.041e-05,2]
[422693572,1779253847000,-500.0,9.041e-05,2]
[422693580,1779253847000,-2121.79,9.041e-05,2]
[422693567,1779253847000,-500.0,9.041e-05,2]
[422693555,1779253847000,-500.0,9.041e-05,2]